Cogmind - Beta 13 @@@ ROGUE MODE // 2024.04.15 @ 23:31:13 Player: Mogwok Wargfriend Result: Destroyed by G-67 Veteran with Field Laser Performance ------------- Evolutions (6) 3000 Regions Visited (10) 2000 Robots Destroyed (83) 415 Value Destroyed (2654) 2654 Prototype IDs (6) 120 Alien Tech Used (0) 0 Bonus (649) 649 TOTAL SCORE: 8838 Bonus ------- Follower Combat Kills 676 Friendly Fire -27 Cogmind --------- Core Integrity 0/1150 Matter 261/300 Energy 296/310 System Corruption 13% Temperature Cool (25) Movement Rolling (115) Ox1 Location -4/Extension Parts ------- > --- POWER (1) -------- Reinforced Fission Core > --- PROPULSION (5) --- Heavy Treads Compact Wheel Compact Wheel > --- UTILITY (11) ----- Advanced Heat Sink Medium Storage Unit Enhanced Optical Array Armor Integrity Analyzer Improved Core Shielding Improved Medium Armor Plating Hacking Suite Hacking Suite Hacking Suite System Shield Advanced System Shield > --- WEAPON (2) ------- Heavy Beamcaster Dispersion Rifle > --- INVENTORY (10) --- Fission Core Neutrino Core Improved Treads Advanced Cooling System Hardened Medium Armor Plating Dispersion Rifle Improved Plasma Cutter Phasing Sabre Peak State ------------ > --- POWER ------------ Neutrino Core > --- PROPULSION ------- Flexi-carbon Leg Flexi-carbon Leg Myomer Leg Myomer Leg Improved Gyrokinetic Inverter > --- UTILITY ---------- Advanced Heat Sink Advanced Heat Sink Advanced Weight Redist. System Machine Analyzer Enhanced Optical Array Improved Target Analyzer Armor Integrity Analyzer Improved Transmission Jammer Hacking Suite System Shield Advanced System Shield > --- WEAPON ----------- Advanced Variable Charge Gun KE Penetrator > --- INVENTORY -------- Micro Fission Core Heavy Beamcaster Battle Rifle Improved Plasma Cutter Phasing Sabre [Rating: 101] Favorites ----------- Power Light Deuterium Engine Engine Light Deuterium Engine Power Core Fission Core Reactor Light Antimatter Reactor Propulsion VTOL Module Treads Light Treads Leg Flexi-carbon Leg Wheel Wheel Hover Unit Antigrav System Flight Unit VTOL Module Utility Hacking Suite Device Improved Heat Sink Storage Small Storage Unit Processor Advanced Melee Analysis Suite Hackware Hacking Suite Protection Hardened Light Armor Plating Weapon Improved Assault Rifle Energy Gun Pulse Rifle Ballistic Gun Improved Assault Rifle Ballistic Cannon Light Cannon Launcher Mini Grenade Launcher Slashing Weapon Phasing Sabre Piercing Weapon Lance Special Melee Weapon Improved Datajack Build | -11 -10 -9 -8 -7 -6 -5 -5 -5 -4 -4 ------- Run | Yrd Mat Mat Mat Fac Fac Fac Upp Upp Fac Ext Slots Evolved 12 | . . 2 2 2 2 2 . . 2 . Power . | . . . . . . . . . . . Propulsion 3 | . . 1 . 1 . . . . 1 . Utility 9 | . . 1 2 1 2 2 . . 1 . Weapon . | . . . . . . . . . . . Parts Attached 190 | 6 7 7 5 22 18 42 20 . 12 51 Power 24 | 1 1 1 . 5 1 6 3 . 1 5 Engine 14 | 1 1 1 . 5 . 3 2 . . 1 Core 9 | . . . . . 1 3 1 . 1 3 Reactor 1 | . . . . . . . . . . 1 Propulsion 65 | 2 3 2 1 6 8 16 9 . 2 16 Treads 8 | . . 1 . 3 . . . . 1 3 Leg 12 | . . . . 1 . . 3 . . 8 Wheel 20 | 2 3 1 1 2 5 1 . . . 5 Hover 9 | . . . . . 2 3 3 . 1 . Flight 16 | . . . . . 1 12 3 . . . Utility 59 | 2 . 1 4 6 7 15 7 . 2 15 Device 25 | 1 . . 1 2 2 9 3 . 1 6 Storage 4 | 1 . . . . . . 2 . . 1 Processor 12 | . . . . 1 4 4 . . . 3 Hackware 8 | . . . 1 . . 2 2 . . 3 Protection 10 | . . 1 2 3 1 . . . 1 2 Artifact . | . . . . . . . . . . . Weapon 42 | 1 3 3 . 5 2 5 1 . 7 15 Energy Gun 15 | . . 1 . 2 1 1 . . 4 6 Energy Cannon . | . . . . . . . . . . . Ballistic Gun 17 | 1 1 2 . 2 1 2 . . 2 6 Ballistic Cannon 5 | . 2 . . 1 . . . . 1 1 Launcher 1 | . . . . . . 1 . . . . Special Weapon . | . . . . . . . . . . . Impact Weapon . | . . . . . . . . . . . Slashing Weapon 2 | . . . . . . . . . . 2 Piercing Weapon 1 | . . . . . . 1 . . . . Special Melee Weapon 1 | . . . . . . . 1 . . . Unidentified Prototypes 6 | . . 2 . 1 . 2 . . 1 . Corrupted Parts 3 | . . . . . . . 3 . . . System Corruption 23 | . . . . . . . 23 . . . Parts Lost 79 | . . 1 1 19 . 10 14 . 14 20 Power 11 | . . . . 3 . 2 2 . 2 2 Propulsion 31 | . . 1 1 5 . 5 6 . 5 8 Utility 25 | . . . . 7 . 3 5 . 5 5 Weapon 12 | . . . . 4 . . 1 . 2 5 Highest Loss Streak 16 | . . 1 1 16 . 4 9 . 5 13 To Critical Strikes . | . . . . . . . . . . . Average Slot Usage (%) 87 | . 88 94 98 94 70 92 88 100 62 85 Engine 4 | . 14 10 9 6 . 3 . 5 . . Core 1 | . . . . . 3 1 3 . . 2 Treads 2 | . . 6 9 7 . . . . 1 2 Leg 2 | . . . . 3 . . 1 11 2 8 Wheel 11 | . 28 22 17 15 24 4 . . . 6 Hover 1 | . . . . . . 2 5 5 5 1 Flight 4 | . . . . . . 14 13 5 1 . Device 11 | . 14 11 11 14 6 15 6 11 6 8 Storage 4 | . 14 11 9 6 . . . 5 3 1 Processor 12 | . . . . . 12 25 23 23 19 15 Hackware 9 | . . . 7 7 6 8 17 17 11 21 Protection 5 | . . 10 16 13 5 1 . . 1 4 Energy Gun 2 | . . . . 6 4 1 . . 1 4 Ballistic Gun 4 | . 14 10 9 7 3 2 . . 2 3 Ballistic Cannon 1 | . 2 11 9 . . . . . . . Piercing Weapon 1 | . . . . . . 2 5 5 1 . Naked Turns . | . . . . . . . . . . . Heaviest Build 53 | 13 16 22 32 53 44 46 18 18 19 49 Greatest Support 59 | 26 26 20 20 36 36 36 30 30 30 59 Greatest Overweight (x) 9 | 2 1 1 2 2 1 3 5 . 4 9 Average Overweight (x) . | . . . 1 . . . . . . . Largest Inventory Capacity 35 | 8 8 8 8 8 5 5 35 5 5 10 Average Capacity 6 | 7 8 8 8 7 5 5 5 5 5 6 Most Carried 10 | 8 8 8 8 8 5 5 5 5 5 10 Average Carried 6 | 5 8 7 7 7 4 4 3 5 4 5 Final Capacity 10 | 8 8 8 8 5 5 5 5 5 5 10 Final Carried 8 | 8 8 8 8 3 5 5 5 5 5 8 Class Distribution -------------------- 39% | Scavenger-Mutant 26% | Mutant 13% | Scavenger-Sprinter 10% | Hacker-Mutant 8% | Scavenger-Scout Dominant Class ---------------- Mutant | -10/Materials Scavenger-Mutant | -9/Materials Scavenger-Mutant | -8/Materials Scavenger-Mutant | -7/Factory Mutant | -6/Factory Scavenger-Sprinter | -5/Factory Scavenger-Sprinter | -5/Upper Caves Scavenger-Mutant | -5/Upper Caves Scavenger-Mutant | -4/Factory Scavenger-Mutant | -4/Extension Resources | -11 -10 -9 -8 -7 -6 -5 -5 -5 -4 -4 ----------- Run | Yrd Mat Mat Mat Fac Fac Fac Upp Upp Fac Ext Matter Collected 2976 | 293 93 183 175 386 . 860 198 . 75 713 Remotely . | . . . . . . . . . . . Salvage Created 4162 | 143 114 167 164 561 97 1249 279 . 137 1251 Parts 202 | 7 6 17 12 25 3 77 9 . 2 44 Haulers Intercepted 1 | . . 1 . . . . . . . . Recyclers Shooed 6 | . . . . 1 1 2 . . . 2 Parts Field Recycled . | . . . . . . . . . . . Retrieved Matter . | . . . . . . . . . . . Parts Self-Destructed 3 | . . . . . . . 3 . . . Prevented 7 | . . . . . . . 7 . . . Kills | -11 -10 -9 -8 -7 -6 -5 -5 -5 -4 -4 ------- Run | Yrd Mat Mat Mat Fac Fac Fac Upp Upp Fac Ext Combat Hostiles Destroyed 48 | . 2 2 5 6 1 15 6 . 4 7 Melee 12 | . . . . . . 2 6 . 3 1 Guns 24 | . 2 . 2 6 1 6 . . 1 6 Cannons 5 | . . 2 3 . . . . . . . AOE 7 | . . . . . . 7 . . . . Classes Destroyed 13 | 3 1 4 2 2 . . 1 . . . Worker 5 | 2 1 . . . . 1 . . . 1 Tunneler 1 | 1 . . . . . . . . . . Hauler 1 | . . 1 . . . . . . . . Recycler 15 | 1 . . . 4 . 5 . . . 5 Minesweeper 2 | . . . . . . . 2 . . . Operator 3 | . . 1 . . . 1 . . . 1 Watcher 8 | . . 2 . . 1 4 . . . 1 Swarmer 19 | . . . 2 . . 10 4 . 3 . Grunt 9 | . 2 1 2 . . 1 1 . . 2 Brawler 1 | . . . 1 . . . . . . . Sentry 10 | . . 1 . 3 1 . 1 . 1 3 Specialist 1 | . . . . 1 . . . . . . Programmer 8 | . . . . 2 . 4 . . . 2 Best Kill Streak 6 | 2 3 2 5 1 1 6 4 . 3 3 Combat Bots Only 5 | . 2 1 5 1 1 5 4 . 3 2 Max Kills in Single Turn 3 | 1 1 1 1 1 1 3 1 . 1 1 Gunslinging . | . . . . . . . . . . . Exploded 3 | . . . . . . 3 . . . . Melee 1 | . . . . . . 1 1 . 1 1 Uniques/NPCs Destroyed . | . . . . . . . . . . . Combat | -11 -10 -9 -8 -7 -6 -5 -5 -5 -4 -4 -------- Run | Yrd Mat Mat Mat Fac Fac Fac Upp Upp Fac Ext Hostile Shots Fired 874 | . 25 6 39 337 21 87 65 2 122 170 Missed 282 | . 4 2 10 124 5 29 25 1 42 40 Damage Taken 10068 | . 265 55 389 2674 201 1064 733 18 1602 3067 Core 2353 | . 90 . 84 610 10 232 174 . 600 553 Absorbed by Shields 69 | . . . . . . 55 . . . 14 Redirected to Shielding 22 | . . . . . . . . . . 22 Ignored by Resistances 405 | . . . . 405 . . . . . . Regen/Repaired (Parts) 83 | . . . . 83 . . . . . . Core Remaining (%) 73 | 100 64 100 84 12 98 . . 59 . . Volleys Fired 259 | 11 21 16 11 64 7 44 . . 11 74 Largest 2 | 1 1 2 2 2 2 2 . . 2 2 Hottest 240 | 20 20 58 58 92 90 90 . . 240 169 Shots Fired 405 | 11 21 32 22 107 10 59 . . 13 130 Gun 361 | 11 21 16 11 104 10 50 . . 11 127 Cannon 35 | . . 16 11 3 . . . . 2 3 Launcher 9 | . . . . . . 9 . . . . Special . | . . . . . . . . . . . Kinetic 267 | 11 21 32 22 71 3 36 . . 9 62 Thermal 108 | . . . . 36 . . . . 4 68 Explosive 9 | . . . . . . 9 . . . . Electromagnetic 21 | . . . . . 7 14 . . . . Robot Hit Streak 23 | 6 16 3 5 23 3 10 . . 2 13 Robot Miss Streak 9 | 3 2 5 2 3 4 4 . . 3 9 Penetration Max 1 | . . . . . . . . . 1 1 Secondary Targets 1 | . . . . . . . . . . 1 Max Gunslinging Chain 1 | . . . . . . . . . . 1 Shots Hit Robots 323 | 7 18 12 13 84 5 49 22 . 18 95 Core Hits 144 | 5 6 7 9 26 4 40 7 . 9 31 Critical Kills 3 | . . . . . . . . . . 3 Critical Parts Destroyed 3 | 1 . . . 1 . . . . . 1 Critical Strikes 21 | 1 . 1 . 4 . 3 3 . 2 7 Burn 4 | . . . . 3 . . . . . 1 Destroy 6 | 1 . . . 1 . . . . . 4 Blast 1 | . . 1 . . . . . . . . Sever 2 | . . . . . . . . . . 2 Impale 8 | . . . . . . 3 3 . 2 . Melee Attacks 134 | . . . . . . 68 42 . 13 11 Impact . | . . . . . . . . . . . Slashing 11 | . . . . . . . . . . 11 Piercing 123 | . . . . . . 68 42 . 13 . Sneak Attacks 9 | . . . . . . 4 2 . . 3 Combat Hostiles . | . . . . . . . . . . . Follow-up Attacks . | . . . . . . . . . . . Damage Inflicted 8680 | 96 230 172 226 1300 133 2028 1088 . 653 2754 Guns 4686 | 96 230 51 84 1256 133 568 . . 157 2111 Cannons 320 | . . 121 142 44 . . . . . 13 Explosions 577 | . . . . . . 577 . . . . Melee 3079 | . . . . . . 883 1088 . 486 622 Ramming 18 | . . . . . . . . . 10 8 Kinetic 3141 | 96 230 172 226 855 47 449 . . 115 951 Thermal 1660 | . . . . 445 . . . . 42 1173 Explosive 577 | . . . . . . 577 . . . . Electromagnetic 205 | . . . . . 86 119 . . . . Impact . | . . . . . . . . . . . Slashing 622 | . . . . . . . . . . 622 Piercing 2457 | . . . . . . 883 1088 . 486 . Highest Corruption 27 | . . . 1 . . 1 27 27 2 13 Average Corruption 4 | . . . 1 . . 1 6 27 1 5 Corruption Purged . | . . . . . . . . . . . Corruption Blocked . | . . . . . . . . . . . Effects 52 | . . . . . . 9 10 1 . 32 Message Errors 14 | . . . . . . 1 6 . . 7 Matter Fused 10 | . . . . . . 1 2 . . 7 Heat Flow Errors 3 | . . . . . . 1 . . . 2 Energy Discharges 6 | . . . . . . . . . . 6 Parts Rejected 4 | . . . . . . . . . . 4 Parts Fused 1 | . . . . . . . . 1 . . Data Loss (minor) 7 | . . . . . . 3 2 . . 2 Data Loss (major) 5 | . . . . . . 2 . . . 3 Alerts 2 | . . . . . . 1 . . . 1 Overload Shots 2 | . . . . . . . . . 2 . Overflow Damage 624 | . . 6 . . . 216 275 . 60 67 Projectiles 6 | . . 6 . . . . . . . . Explosions 9 | . . . . . . 9 . . . . Melee 609 | . . . . . . 207 275 . 60 67 Knockbacks 6 | . . . 4 1 . . . . . 1 Impact . | . . . . . . . . . . . Kinetic 6 | . . . 4 1 . . . . . 1 Secondary . | . . . . . . . . . . . Self-Inflicted Damage 49 | . . . . . . 41 . . 4 4 Shots 1 | . . . . . . 1 . . . . Rammed 4 | . . . . . . . . . 3 1 Targets Rammed 4 | . . . . . . . . . 3 1 Kicked . | . . . . . . . . . . . Crushed . | . . . . . . . . . . . Highest Temperature 317 | . . 36 195 66 84 277 . . 317 199 Average Temperature 64 | . . 12 94 16 31 121 . . 116 24 Received Heat Transfer 1291 | . 150 18 207 102 . 54 54 9 192 505 Siege Activations . | . . . . . . . . . . . Robots Corrupted . | . . . . . . . . . . . Combat Hostiles . | . . . . . . . . . . . Parts Fried 1 | . . . . . 1 . . . . . Impact Corruptions . | . . . . . . . . . . . Robots Melted . | . . . . . . . . . . . Combat Hostiles . | . . . . . . . . . . . Parts Melted 5 | . . . . 1 . . . . . 4 Heat Transferred 2825 | . . . . 1054 . . . . 50 1721 Parts Sabotaged . | . . . . . . . . . . . Parts Stolen . | . . . . . . . . . . . Parts Stripped . | . . . . . . . . . . . Power Chain Reactions . | . . . . . . . . . . . Alert | -11 -10 -9 -8 -7 -6 -5 -5 -5 -4 -4 ------- Run | Yrd Mat Mat Mat Fac Fac Fac Upp Upp Fac Ext Peak Influence 389 | 20 86 117 101 197 97 389 . . 70 169 Initial 45 | . 13 11 . 45 . 25 . . 14 29 Average 70 | 4 53 51 43 61 40 124 . . 42 59 Maximum Alert Level 1 | . . . . . . 1 . . . . Low Security (%) 95 | 100 100 100 100 100 100 82 . . 100 100 Level 1 4 | . . . . . . 17 . . . . Level 2 . | . . . . . . . . . . . Level 3 . | . . . . . . . . . . . Level 4 . | . . . . . . . . . . . Level 5 . | . . . . . . . . . . . High Security . | . . . . . . . . . . . Max Security . | . . . . . . . . . . . Squads Dispatched 16 | . 1 3 1 3 1 6 . . 1 . Investigation 3 | . . . 1 1 1 . . . . . Extermination 4 | . . . . 2 . 1 . . 1 . Reinforcement 8 | . 1 3 . . . 4 . . . . Assault . | . . . . . . . . . . . Garrison 1 | . . . . . . 1 . . . . Intercept . | . . . . . . . . . . . Searches Triggered . | . . . . . . . . . . . Construction Impeded 1 | . . . . . . 1 . . . . Haulers Reinforced . | . . . . . . . . . . . Active Scanning Responses . | . . . . . . . . . . . Cargo Convoy Interrupts 1 | . . . . 1 . . . . . . Stealth | -11 -10 -9 -8 -7 -6 -5 -5 -5 -4 -4 --------- Run | Yrd Mat Mat Mat Fac Fac Fac Upp Upp Fac Ext Distress Signals 6 | . . 2 1 . 1 . . . . 2 Communications Jammed . | . . . . . . . . . . . Distress Signals . | . . . . . . . . . . . Times Spotted 134 | . 5 7 8 15 6 36 11 3 13 30 Peak Tracking Total 8 | . 2 3 6 8 4 6 4 3 7 7 Tactical Retreats 9 | . . . . 3 1 1 2 . 1 1 Traps | -11 -10 -9 -8 -7 -6 -5 -5 -5 -4 -4 ------- Run | Yrd Mat Mat Mat Fac Fac Fac Upp Upp Fac Ext Traps Triggered 9 | . . . 1 2 . 4 . . 1 1 Indirectly . | . . . . . . . . . . . Trap Hack Attempts . | . . . . . . . . . . . Triggered . | . . . . . . . . . . . Disarmed . | . . . . . . . . . . . Reprogrammed . | . . . . . . . . . . . Reused 4 | . . . . . . . 4 . . . Traps Extracted 1 | . . . . . . . 1 . . . Installed 6 | . . . . . . . 6 . . . Triggered 4 | . . . . . . . 4 . . . Most Traps Carried 6 | . . . . . . . 6 1 1 . Machines | -11 -10 -9 -8 -7 -6 -5 -5 -5 -4 -4 ---------- Run | Yrd Mat Mat Mat Fac Fac Fac Upp Upp Fac Ext Machines Disabled 6 | . . . . . 1 2 . . . 3 Max in Single Turn 2 | . . . . . 1 2 . . . 1 Garrison Access 2 | . . . . . 1 1 . . . . Machines Repaired . | . . . . . . . . . . . Machines Dismantled . | . . . . . . . . . . . Machines Sabotaged . | . . . . . . . . . . . Overloaded Fab Kills . | . . . . . . . . . . . Hacking | -11 -10 -9 -8 -7 -6 -5 -5 -5 -4 -4 --------- Run | Yrd Mat Mat Mat Fac Fac Fac Upp Upp Fac Ext Machines Accessed 39 | . 6 2 2 6 4 8 . . 1 10 Terminals 24 | . 4 2 1 2 1 4 . . 1 9 Fabricators 4 | . . . . . 2 2 . . . . Repair Stations 1 | . . . . 1 . . . . . . Recycling Units 6 | . 2 . 1 2 . . . . . 1 Scanalyzers 2 | . . . . 1 . 1 . . . . Garrison Access 2 | . . . . . 1 1 . . . . Total Hacks 124 | . 20 5 6 13 8 17 . . 3 52 Successful 63 | . 8 1 3 9 4 6 . . 1 31 Failed 59 | . 11 4 3 4 4 11 . . 2 20 Catastrophic 9 | . 2 1 . 1 1 3 . . . 1 Database Lockouts 2 | . 1 . . . . . . . . 1 Manual 91 | . 15 5 5 8 2 10 . . 2 44 Terminals 93 | . 18 5 3 5 2 10 . . 3 47 Fabricators 8 | . . . . . 4 4 . . . . Repair Stations 5 | . . . . 5 . . . . . . Recycling Units 12 | . 2 . 3 2 . . . . . 5 Scanalyzers 3 | . . . . 1 . 2 . . . . Garrison Access 3 | . . . . . 2 1 . . . . Terminal Hacks 30 | . 4 . . 1 . 2 . . . 23 Record 2 | . . . . . . . . . . 2 Part Schematic 2 | . . . . . . . . . . 2 Robot Analysis 3 | . 1 . . . . . . . . 2 Open Door 5 | . . . . . . . . . . 5 Branch Access Points 1 | . . . . . . . . . . 1 Emergency Access Points 2 | . 1 . . . . . . . . 1 Terminal Index 1 | . . . . . . . . . . 1 Alert Level 1 | . 1 . . . . . . . . . Unreport Threat 3 | . . . . 1 . 2 . . . . Locate Traps 1 | . . . . . . . . . . 1 Dispatch Records 2 | . 1 . . . . . . . . 1 Surveillance Status 1 | . . . . . . . . . . 1 Patrol Status 1 | . . . . . . . . . . 1 Garrison Status 1 | . . . . . . . . . . 1 Hauler Manifests 1 | . . . . . . . . . . 1 Registered Components 1 | . . . . . . . . . . 1 Registered Prototypes 1 | . . . . . . . . . . 1 Zone Layout 1 | . . . . . . . . . . 1 Fabricator Hacks 2 | . . . . . 2 . . . . . Network Status 1 | . . . . . 1 . . . . . Build 1 | . . . . . 1 . . . . . Repair Station Hacks 5 | . . . . 5 . . . . . . Scan Component 3 | . . . . 3 . . . . . . Repair 2 | . . . . 2 . . . . . . Recycling Unit Hacks 1 | . . . 1 . . . . . . . Report Inventory 1 | . . . 1 . . . . . . . Scanalyzer 1 | . . . . . . 1 . . . . Insert Component 1 | . . . . . . 1 . . . . Garrison Access Hacks 2 | . . . . . 1 1 . . . . Seal Access 2 | . . . . . 1 1 . . . . Unauthorized Hacks 22 | . 4 1 2 3 1 2 . . 1 8 Terminals 16 | . 2 1 1 2 1 2 . . 1 6 Track 1 | . . . . . . . . . . 1 Botnet 14 | . 2 1 1 2 1 2 . . 1 4 Operators 1 | . . . . . . . . . . 1 Fabricators . | . . . . . . . . . . . Repair Stations . | . . . . . . . . . . . Recycling Units 6 | . 2 . 1 1 . . . . . 2 Reject 5 | . 2 . 1 1 . . . . . 1 Mask 1 | . . . . . . . . . . 1 Scanalyzers . | . . . . . . . . . . . Garrison Access . | . . . . . . . . . . . Data Cores Recovered . | . . . . . . . . . . . Used . | . . . . . . . . . . . Hacking Detections 30 | . 6 2 1 4 3 7 . . 1 6 Full Trace Events 2 | . 1 . . . 1 . . . . . Feedback Events . | . . . . . . . . . . . Feedback Blocked . | . . . . . . . . . . . Robot Schematics Acquired . | . . . . . . . . . . . Robots Built 3 | . . . . . 3 . . . . . Authchips . | . . . . . . . . . . . Time 76 | . . . . . 76 . . . . . Total Robot Build Rating 15 | . . . . . 15 . . . . . Part Schematics Acquired 2 | . . . . . . . . . . 2 Parts Built . | . . . . . . . . . . . Authchips . | . . . . . . . . . . . Time . | . . . . . . . . . . . Total Part Build Rating . | . . . . . . . . . . . Parts Repaired 2 | . . . . 2 . . . . . . Time 35 | . . . . 35 . . . . . . Parts Recycled . | . . . . . . . . . . . Recycled Matter . | . . . . . . . . . . . Retrieved Matter . | . . . . . . . . . . . Retrieved Components . | . . . . . . . . . . . Parts Scanalyzed 1 | . . . . . . 1 . . . . Part Schematics Acquired . | . . . . . . . . . . . Parts Damaged . | . . . . . . . . . . . Bothacking | -11 -10 -9 -8 -7 -6 -5 -5 -5 -4 -4 ------------ Run | Yrd Mat Mat Mat Fac Fac Fac Upp Upp Fac Ext Used RIF Installer . | . . . . . . . . . . . Robots Hacked . | . . . . . . . . . . . Non-combat . | . . . . . . . . . . . Combat . | . . . . . . . . . . . Robot Hacks Applied . | . . . . . . . . . . . Relay Couplers Released . | . . . . . . . . . . . Fabnet Peak Effective % . | . . . . . . . . . . . Robots Rewired 8 | . . . . . . . . . . 8 Allies Hacked . | . . . . . . . . . . . Hacks Repelled . | . . . . . . . . . . . Allies | -11 -10 -9 -8 -7 -6 -5 -5 -5 -4 -4 -------- Run | Yrd Mat Mat Mat Fac Fac Fac Upp Upp Fac Ext Total Allies 17 | . . . . . 3 . . . . 14 Largest Group 6 | . . . . . 3 3 . . . 6 Highest-Rated Group 272 | . . . . . 87 87 . . . 272 Highest-Rated Ally 159 | . . . . . 29 29 . . . 159 Total Orders . | . . . . . . . . . . . Ally Attacks 110 | . . . . . 9 9 . . . 92 Total Damage 2849 | . . . . . 75 92 . . . 2682 Kills 16 | . . . . . . 3 . . . 13 Allies Corrupted 1 | . . . . . . . . . . 1 Allies Melted . | . . . . . . . . . . . Intel | -11 -10 -9 -8 -7 -6 -5 -5 -5 -4 -4 ------- Run | Yrd Mat Mat Mat Fac Fac Fac Upp Upp Fac Ext Robot Analysis Total 3 | . 1 . . . . . . . . 2 Derelict Logs Recovered 1 | . . . . . . . 1 . . . Drone Launches . | . . . . . . . . . . . Drone Recoveries . | . . . . . . . . . . . Exploration | -11 -10 -9 -8 -7 -6 -5 -5 -5 -4 -4 ------------- Run | Yrd Mat Mat Mat Fac Fac Fac Upp Upp Fac Ext Turns Passed 6735 | 116 531 544 237 1084 615 1533 611 38 333 1093 Spaces Moved 6694 | 82 296 524 195 788 592 2247 991 32 300 647 Core 392 | 27 . . . 23 104 . 1 . 125 112 Treads 1 | . . . . . . . . . 1 . Legs 250 | . . . . . . . 74 32 52 92 Wheels 2891 | 55 296 524 195 765 488 258 . . . 310 Hover 410 | . . . . . . . 155 . 122 133 Flight 2750 | . . . . . . 1989 761 . . . Fastest Speed 23 | 50 80 80 95 50 50 23 23 120 50 50 Average Speed 67 | 90 83 89 95 102 89 37 40 120 76 106 Slowest Speed 500 | 150 95 95 110 120 105 274 300 120 250 500 Overloaded Moves 44 | . . . . . . 31 13 . . . Propulsion Burnouts . | . . . . . . . . . . . Robots Hopped 3 | . . . . . . 3 . . . . Cave-ins Triggered 1 | . . . . . . . 1 . . . Exploration Rate (%) 27 | 6 31 35 17 17 14 36 78 7 8 49 Regions Visited 10 Branch Regions 3 Pre-discovered Areas . | . . . . . . . . . . . Known Exits Taken 3 | . . . . . . 1 1 1 . . Unknown Exits Taken 7 | 1 1 1 1 1 1 . . . 1 . Scrap Searched 3 | . . . . . . . 3 . . . Spaces Dug 66 | . . . . . . 48 17 . 1 . Terrain Destroyed 142 | . . . . . . 116 17 . 5 4 Melee 56 | . . . . . . 39 17 . . . Projectile 9 | . . . . . . . . . 5 4 AOE 77 | . . . . . . 77 . . . . Terrain Rammed . | . . . . . . . . . . . Walls Destroyed . | . . . . . . . . . . . Machines Disabled . | . . . . . . . . . . . Actions | -11 -10 -9 -8 -7 -6 -5 -5 -5 -4 -4 --------- Run | Yrd Mat Mat Mat Fac Fac Fac Upp Upp Fac Ext Total 8297 | 110 560 573 223 960 662 2785 1129 31 370 894 Wait 743 | . 228 12 10 71 33 278 64 . 17 30 Move 6677 | 81 295 523 194 787 591 2240 989 31 299 647 Hop 3 | . . . . . . 3 . . . . Pick Up 67 | 10 2 6 1 3 4 19 3 . 2 17 Fast Attach 140 | 6 3 6 3 14 17 30 16 . 7 38 Attach 34 | . . 1 2 6 . 9 3 . 5 8 Detach 20 | . . . 1 1 2 5 1 . 7 3 Swap 17 | . 4 . . 3 1 3 1 . . 5 Drop 94 | 2 7 9 1 11 7 32 3 . 5 17 Fire 259 | 11 21 16 11 64 7 44 . . 11 74 Melee 134 | . . . . . . 68 42 . 13 11 Ram 4 | . . . . . . . . . 3 1 Kick . | . . . . . . . . . . . Crush . | . . . . . . . . . . . Escape Stasis 68 | . . . . . . 54 1 . . 13 Rewire 31 | . . . . . . . . . 1 30 Trap 6 | . . . . . . . 6 . . . Miscellaneous . | . . . . . . . . . . . Route ------- -11/Scrapyard -10/Materials -9/Materials -8/Materials -7/Factory (discovered 2 exits: *Fac x2) -6/Factory (discovered 2 exits: *Fac / [*Low]) -5/Factory -5/Upper Caves -5/Upper Caves -4/Factory -4/Extension (discovered 2 exits: [*Res] / Cet) History --------- Turn | Location | Event 6 | -11/Scrapyard | Discovered new exit (range 15) 117 | -11/Scrapyard | Entered Materials 304 | -10/Materials | Build established: Mutant 568 | -10/Materials | Discovered new exit (range 10) 579 | -10/Materials | Central database locked down 648 | -10/Materials | Entered another Materials area 648 | -9/Materials | Evolved 2 slots: Propulsion x1, Utility x1 1113 | -9/Materials | Build established: Scavenger-Mutant 1185 | -9/Materials | Discovered new exit (range 8) 1192 | -9/Materials | Entered another Materials area 1192 | -8/Materials | Evolved 2 slots: Utility x2 1389 | -8/Materials | Discovered new exit (range 4) 1429 | -8/Materials | Entered Factory 1429 | -7/Factory | Evolved 2 slots: Propulsion x1, Utility x1 1922 | -7/Factory | Discovered new exit (range 15) 1968 | -7/Factory | Repaired Hrd. Light Armor Plating 1988 | -7/Factory | Repaired Recoil Stabilizer 2381 | -7/Factory | Cargo convoy interrupted 2464 | -7/Factory | Discovered new exit (range 16) 2495 | -7/Factory | Core integrity fell below 50% 2502 | -7/Factory | Core integrity fell below 20% 2513 | -7/Factory | Entered another Factory area 2513 | -6/Factory | Evolved 2 slots: Utility x2 2527 | -6/Factory | Lost 16 parts (2p3n7u4w) 2537 | -6/Factory | Discovered new exit (range 13) 2755 | -6/Factory | Build established: Mutant 2778 | -6/Factory | Discovered new exit (range 15) 2917 | -6/Factory | Fabricated G-50 Soldier (x3) 3128 | -6/Factory | Entered another Factory area 3128 | -5/Factory | Accompanied by 3 allies 3128 | -5/Factory | Evolved 2 slots: Utility x2 3335 | -5/Factory | Garrison activated, responded to threat 3734 | -5/Factory | Lost 4 parts (1p2n1u) 3737 | -5/Factory | Build established: Scavenger-Sprinter 3905 | -5/Factory | Lost 4 parts (1p2n1u) 4385 | -5/Factory | Build established: Scavenger-Scout 4644 | -5/Factory | Spotted B-75 Beast 4654 | -5/Factory | Discovered new exit (range 10) 4661 | -5/Factory | Identified exit to Upper Caves 4661 | -5/Factory | Entered Upper Caves 4722 | -5/Upper Caves | Lost 9 parts (1p3n4u1w) 4756 | -5/Upper Caves | Encountered a Warlord checkpoint 4830 | -5/Upper Caves | Learned Factory stockpile data 4839 | -5/Upper Caves | Spotted B-75 Beast 4982 | -5/Upper Caves | Crushed by falling debris 5014 | -5/Upper Caves | Attracted the attention of an 0b10 checkpoint 5161 | -5/Upper Caves | System corruption reached 10% 5182 | -5/Upper Caves | Lost 3 parts (1p1n1u) 5238 | -5/Upper Caves | Discovered new exit (range 12) 5250 | -5/Upper Caves | Identified exit to Upper Caves 5272 | -5/Upper Caves | Entered another Upper Caves area 5286 | -5/Upper Caves | Discovered new exit (range 7) 5290 | -5/Upper Caves | Identified exit to Factory 5310 | -5/Upper Caves | Entered Factory 5310 | -4/Factory | Evolved 2 slots: Propulsion x1, Utility x1 5398 | -4/Factory | Lost 4 parts (2p1n1u) 5443 | -4/Factory | Lost 5 parts (2n1u2w) 5586 | -4/Factory | Lost 3 parts (1n2u) 5633 | -4/Factory | Core integrity fell below 50% 5637 | -4/Factory | Discovered new exit (range 13) 5643 | -4/Factory | Entered Extension 5690 | -4/Extension | Rescued a captive Derelict 5936 | -4/Extension | Lost 4 allies 5990 | -4/Extension | Lost 3 parts (2n1w) 6098 | -4/Extension | Build established: Scavenger-Mutant 6209 | -4/Extension | Core integrity fell below 20% 6242 | -4/Extension | Lost 13 parts (2p5n4u2w) 6392 | -4/Extension | Rescued a captive Derelict 6393 | -4/Extension | Rescued a captive Derelict 6454 | -4/Extension | Rescued A7 6465 | -4/Extension | Lost 3 allies 6471 | -4/Extension | Central database locked down 6471 | -4/Extension | Identified exit to Cetus 6568 | -4/Extension | Disrupted transfer network 6571 | -4/Extension | Spotted B-86 Titan 6579 | -4/Extension | Rescued a captive Derelict 6581 | -4/Extension | Rescued a captive Derelict 6589 | -4/Extension | Lost 3 allies 6591 | -4/Extension | Spotted B-86 Titan 6616 | -4/Extension | Allies destroyed B-86 Titan 6620 | -4/Extension | Allies destroyed B-86 Titan 6672 | -4/Extension | Discovered new exit (range 3) 6696 | -4/Extension | P-70 Sage assimilated allied TG-VBX(l) 6704 | -4/Extension | Extracted ID and sensor layout for unrecognized location from A7's data core 6731 | -4/Extension | System corruption reached 10% 6736 | -4/Extension | Destroyed by G-67 Veteran with Field Laser Last Messages --------------- sensor data for unrecognized location. 06704_ C-30 ARC bursts open, deploying its payload. 06704_ B-60 Warrior unfolds itself. 06704_ G-67 Veteran unfolds itself. 06707_ HV Slug penetrates TG-VBX(l). 06707_ TG-VBX(l) suffers critical hit (Destroy). 06707_ G-67 Veteran suffers critical hit (Destroy). 06707_ G-67 Veteran destroyed. 06707_ TG-VBX(l) destroyed. 06721_ Battle Rifle destroyed. 06726_ P-70 Sage resets K-01 Serf, system corruption cleaned. 06727_ Com. Wheel destroyed. 06730_ G-67 Veteran knocked back. 06732_ Bore Cannon destroyed. 06735_ System corrupted: Substantial component data lost. 06736_ B-60 Warrior suffers critical hit (Burn). Map ----- +----------------------------------------------------+ | ""#?????# #????????????????????????????????? | | T"#?????# #????????????????????????????????? | | """#?????# #????????????????????????????????? | | * ####?????# #????????????????????????????????? | | !#????????# #????????????????????????????????? | | =%%#????????# #????????????????????????????????? | | "T"#!#????????# #????????????????????????????????? | | ####%#????????# #????????????????????????????????? | | ???#u#????????# #????????????????????????????????? | | ???#=#????????# ????????????????????????????????? | | ####*#????????#%#????????????????????????????????? | | ## #!#????????#"#????????????????????????????????? | | %#%#????????#"#????????????????????????????????? | | [*=#????????#%#????????????????????????????????? | | ##T#=#????????#"#????????????????????????????????? | | #### #????????#%#????????????????????????????????? | | ???# #????????#!#????????????????????????????????? | | ???# ###??????# #????????????????????????????????? | | ?#?# # ######?#%#????????????????????????????????? | | ?###%### ## ###%###??????????????????????????????? | | ?# " %""#??????????????????????????????? | | ## % "%#??????????????????????????????? | | #% #??????????????????????????????? | | ##% #??????????????????????????????? | | ## ###################????????????? | | % % p @ ??? | | * g b ??? | | ! =* % p ??? | | * !% = ???? | | =%! u!k kRR R k ???? | | ## ]]%=! ###########################????? | | ?# *% #??????????????????????????????? | | ?# ! #??????????????????????????????? | | ?# #??????????????????????????????? | | ?# #??????????????????????????????? | | ?######T# #######??????????????????????????????? | | ??? ##### < #????????????????????????????????????? | | ??# ????#####????????????????????????????????????? | | | | | | | | | | | | | | | | | | | | | | | | | +----------------------------------------------------+ Best States ------------- Heat Dissipation 82 Energy Generation 21 Energy Capacity 360 Matter Stores 300 Matter Capacity 300 Sight Range 22 Robot Scan Range 15 Terrain Scan Density 10 Jamming Range 12 Additional Mass Support 9 Armor Coverage 600 Resistance: KI 30 Core Shielding 30 Evasion (%) 64 Targeting Accuracy 8 Melee Accuracy 8 Target Analysis 6 Core Analysis 9 Armor Integrity Analysis 30 Recoil Reduction 4 Matter Filtering 30 Offensive Hacking 30 Defensive Hacking 37 Trap Extractor Capacity 6 Item Schematics ----------------- Imp. Hacking Suite | -4/Extension | Hacked Imp. System Shield | -4/Extension | Hacked Robot Schematics ------------------ None Fabricated ------------ G-50 Soldier | x3 | -6/Factory | Preloaded Alien Tech Used ----------------- None Achievements -------------- None Challenges ------------ None Game ------ Seed AdvancedDynamicMatter Manual? 0 Play Time 01:18:14 Cumulative 171.9 hours Start 2024.04.15 @ 16:56:52 End 2024.04.15 @ 23:31:13 Sessions 3 Manual Loads 0 Difficulty Rogue Special Mode None Game No. 165 Rogue 165 Adventurer 0 Explorer 0 Win Type - Total 0 Types 0/0/0/0/0/0/0/0/0 Lore% 53 Gallery% 65 Achievement% 44 Wizard Run 0 Options --------- Layout 2 ASCII 1 Keyboard 1 Movement Numpad Keybinds 0 Fullscreen 2 Font 32/TamsynBold Map View 50x44 Zoom Use 0% Tactical HUD 1 Map Filters NONE Filters NONE Steam 1 RUN: 6bd460c5-db52-4cbb-b0bd-ce2ad4630c99